{"text_format":"3","workbook":"xlsx","n_sheets":1,"sheets":["Pricing Structure"],"read":"whole","date_system":"1900"}

{"sheet":"Pricing Structure","index":0,"n_rows":48,"n_cols":13,"rows_kept":48,"merged":[[4,4,4,5],[4,7,4,8],[4,10,4,11],[4,12,5,12],[5,4,5,5],[5,7,5,8],[5,10,5,11],[7,0,7,2],[8,0,8,2],[9,0,9,2],[12,0,12,2],[13,0,13,2],[14,0,14,2],[17,0,17,2],[18,0,18,2],[19,0,19,2],[22,0,22,2],[23,0,23,2],[25,0,25,2],[34,0,34,8],[34,9,34,10],[34,11,34,12]]}
["SANSA Tender No CO/014/01/2024: APPOINTMENT OF PANEL FOR HIGH TO VERY HIGH SPATIAL RESOLUTION, OPTICAL AND SAR IMAGES"]
["Pricing Schedule "]
["Complete the Rate per  square kilometer for a period of 3 years including escalations"]
["Bidder to complete only the section for the Category they are responding to."]
[{"$nulls":4},"Year 1",null,null,"Year 2",null,null,"Year 3",null,"3 Year Total"]
[{"$nulls":4},"Rate/SQ.KM",null,null,"Rate/SQ.KM",null,null,"Rate/SQ.KM"]
[]
["Spatial resolution                                                           \"Bidder to indicate the price per square kilometer, per spatial and acquisition mode”"]
["Archived Data"]
["New Acquisition"]
[{"$nulls":5},{"$f":"SUM(F9:F10)","v":0},null,null,{"$f":"SUM(I9:I10)","v":0},null,null,{"$f":"SUM(L9:L10)","v":0},{"$f":"F11+I11+L11","v":0}]
[]
["Temporary resolution\n\n“Bidder to indicate price per square kilometre and image acquisition frequency over the same AOI”"]
["Archived Data"]
["New Acquisition"]
[{"$nulls":5},{"$f":"SUM(F14:F15)","v":0},null,null,{"$f":"SUM(I14:I15)","v":0},null,null,{"$f":"SUM(L14:L15)","v":0},{"$f":"F16+I16+L16","v":0}]
[]
["\nSystematic image acquisition of South Africa (Single license multi-user agreement)\nEmergency tasking per square kilometre"]
["Archived Data"]
["New Acquisition"]
[{"$nulls":5},{"$f":"SUM(F19:F20)","v":0},null,null,{"$f":"SUM(I19:I20)","v":0},null,null,{"$f":"SUM(L19:L20)","v":0},{"$f":"F21+I21+L21","v":0}]
[]
["Other Costs (to be fully stipulated)"]
[]
[]
[]
[{"$nulls":5},{"$f":"SUM(F24:F26)","v":0},null,null,{"$f":"SUM(I24:I26)","v":0},null,null,{"$f":"SUM(L24:L26)","v":0},{"$f":"F27+I27+L27","v":0}]
[]
[]
["Total fees before VAT",{"$nulls":4},{"$f":"F21","v":0},null,null,{"$f":"I21","v":0},null,null,{"$f":"L21","v":0},{"$f":"F30+I30+L30","v":0}]
[]
["VAT",{"$nulls":4},{"$f":"F30*15%","v":0},null,null,{"$f":"I30*15%","v":0},null,null,{"$f":"L30*15%","v":0},{"$f":"M30*15%","v":0}]
[]
["Total including  VAT",{"$nulls":4},{"$f":"F30+F32","v":0},null,null,{"$f":"I30+I32","v":0},null,null,{"$f":"L30+L32","v":0},{"$f":"M30+M32","v":0}]
["PRICE THAT WILL BE USED FOR EVALUATION PURPOSES ( TOTAL CONTRACT AMOUNT (INCL VAT)  \nPLEASE CARRY FORWARD TO THE FORM OF OFFER \nAND ACCEPTANCE C1.2) ",{"$nulls":10},{"$f":"+M34","v":0}]
[]
[]
["Name of the supplier/service provider : "]
[]
[]
[]
["Submitted by:"]
[]
[]
["Signature:"]
[]
[]
["Date:"]